fUST/lending_fUST_20250328
["ID","MTS","AMOUNT","RATE_DAILY","PERIOD"]
[356761980,1743137244032,-500.0,0.00035616,17]
[356761981,1743137244054,-500.0,0.00035616,17]
[356761982,1743137244075,-629.7554286,0.00035616,17]
[356761983,1743137244097,-711.74,0.00035616,17]
[356761984,1743137244119,-500.0,0.00035616,17]
[356761985,1743137244141,-500.0,0.00035616,17]
[356761986,1743137244162,-1235.25,0.00035616,17]
[356761987,1743137244184,-536.1427776,0.00035616,17]
[356761988,1743137244208,-1301.09,0.00035616,17]
[356761989,1743137244229,-560.96,0.00035616,17]
[356761990,1743137244252,-7106.12,0.00035616,17]
[356761991,1743137244275,-828.13,0.00035616,17]
[356761992,1743137244295,-500.0,0.00035616,17]
[356761993,1743137244317,-500.0,0.00035616,17]
[356761994,1743137244339,-1889.72,0.00035616,17]
[356761995,1743137244360,-3795.49,0.00035616,17]
[356761996,1743137244381,-500.0,0.00035616,17]
[356761997,1743137244405,-2096.33,0.00035616,17]
[356761998,1743137244427,-500.0,0.00035616,17]
[356761999,1743137244451,-744.22,0.00035616,17]
[356762000,1743137244473,-17594.34,0.00035616,17]
[356762001,1743137244495,-500.0,0.00035616,17]
[356762002,1743137244516,-500.0,0.00035616,17]
[356762003,1743137244536,-621.66,0.00035616,17]
[356762004,1743137244559,-663.78,0.00035616,17]
[356762005,1743137244581,-1826.7,0.00035616,17]
[356762006,1743137244603,-2325.31,0.00035616,17]
[356762007,1743137244624,-679.11,0.00035616,17]
[356762008,1743137244646,-605.69,0.00035616,17]
[356762009,1743137244668,-500.0,0.00035616,17]
[356762010,1743137244690,-500.0,0.00035616,17]
[356762011,1743137244714,-500.0,0.00035616,17]
[356762012,1743137244735,-8358.81,0.00035616,17]
[356762013,1743137244756,-400.47516316,0.00035616,14]
[356762014,1743137244777,-513.6242945,0.00035616,17]
[356762015,1743137244799,-2009.16,0.00035616,17]
[356762016,1743137244820,-3431.69,0.00035616,17]
[356762017,1743137244845,-500.0,0.00035616,17]
[356762018,1743137244868,-2680.72,0.00035616,17]
[356762019,1743137244890,-4198.09,0.00035616,17]
[356762020,1743137245064,-500.0,0.00035616,17]
[356762021,1743137245087,-500.0,0.00035616,17]
[356762022,1743137245109,-538.19,0.00035616,17]
[356762023,1743137245131,-549.43,0.00035616,17]
[356762024,1743137245152,-500.0,0.00035616,17]
[356762025,1743137245174,-500.0,0.00035616,17]
[356762026,1743137245198,-500.0,0.00035616,17]
[356762027,1743137245220,-542.83052318,0.00035616,17]
[356762028,1743137245242,-500.0,0.00035616,17]
[356762029,1743137245264,-500.0,0.00035616,17]
[356762030,1743137245286,-2166.21,0.00035616,17]
[356762031,1743137245307,-500.0,0.00035616,17]
[356762032,1743137245329,-500.0,0.00035616,17]
[356762033,1743137245351,-500.0,0.00035616,17]
[356762034,1743137245372,-6302.55,0.00035616,17]
[356762035,1743137245394,-778.07,0.00035616,17]
[356762036,1743137245418,-500.0,0.00035616,17]
[356762037,1743137245440,-1374.76,0.00035616,17]
[356762038,1743137245463,-500.0,0.00035616,14]
[356762039,1743137245484,-500.0,0.00035616,17]
[356762040,1743137245505,-1799.85,0.00035616,17]
[356762041,1743137245526,-588.79,0.00035616,17]
[356762042,1743137245547,-543.90480091,0.00035616,17]
[356762043,1743137245568,-1048.65,0.00035616,17]
[356762044,1743137245589,-500.0,0.00035616,17]
[356762045,1743137245612,-827.17,0.00035616,17]
[356762046,1743137245634,-500.0,0.00035616,17]
[356762047,1743137245655,-500.0,0.00035616,17]
[356762048,1743137245676,-603.78,0.00035616,17]
[356762049,1743137245699,-605.17,0.00035616,17]
[356762050,1743137245720,-500.0,0.00035616,17]
[356762051,1743137245741,-3717.21,0.00035616,17]
[356762052,1743137245761,-1860.77,0.00035616,17]
[356762053,1743137245782,-500.0,0.00035616,17]
[356762054,1743137245804,-500.0,0.00035616,17]
[356762055,1743137245829,-8419.82,0.00035616,17]
[356762056,1743137245851,-1096.06,0.00035616,17]
[356762057,1743137245873,-2709.11,0.00035616,17]
[356762058,1743137245895,-500.0,0.00035616,17]
[356762059,1743137245920,-500.0,0.00035616,17]
[356762060,1743137245941,-500.0,0.00035616,17]
[356762061,1743137245969,-500.0,0.00035616,17]
[356762062,1743137245993,-1466.97,0.00035616,17]
[356762063,1743137246016,-500.0,0.00035616,2]
[356762064,1743137246039,-1128.02,0.00035616,17]
[356762065,1743137246073,-1691.27,0.00035616,17]
[356762066,1743137246112,-1228.52,0.00035616,17]
[356762067,1743137246158,-619.69,0.00035616,17]
[356762068,1743137246201,-602.75,0.00035616,17]
[356762069,1743137246239,-1000.0,0.00035616,17]
[356762070,1743137246273,-500.0,0.00035616,17]
[356762071,1743137246315,-1740.21,0.00035616,17]
[356762072,1743137246347,-861.19,0.00035616,17]
[356762073,1743137246384,-500.0,0.00035616,17]
[356762074,1743137246419,-926.54,0.00035616,17]
[356762075,1743137246458,-3207.07,0.00035616,17]
[356762076,1743137246495,-151.0,0.00035616,14]
[356762077,1743137246532,-154.441178,0.00035616,14]
[356762078,1743137246570,-500.0,0.00035616,17]
[356762079,1743137246607,-500.0,0.00035616,17]
[356762080,1743137246642,-500.0,0.00035616,17]
[356762081,1743137246675,-12675.5,0.00035616,17]
[356762082,1743137246710,-500.0,0.00035616,17]
[356762083,1743137246742,-500.0,0.00035616,17]
[356762084,1743137246775,-500.0,0.00035616,17]
[356762085,1743137246808,-702.95,0.00035616,17]
[356762086,1743137246846,-500.0,0.00035616,17]
[356762087,1743137246879,-1057.2,0.00035616,17]
[356762088,1743137246910,-1926.83,0.00035616,17]
[356762089,1743137246942,-500.0,0.00035616,17]
[356762090,1743137246978,-500.0,0.00035616,17]
[356762091,1743137247012,-1323.18,0.00035616,17]
[356762092,1743137247049,-500.0,0.00035616,17]
[356762093,1743137247081,-500.0,0.00035616,17]
[356762094,1743137247113,-500.0,0.00035616,17]
[356762095,1743137247146,-151.0,0.00035616,14]
[356762096,1743137247179,-626.16,0.00035616,17]
[356762097,1743137247215,-524.85,0.00035616,17]
[356762098,1743137247246,-151.0,0.00035616,14]
[356762099,1743137247278,-239.481624,0.00035616,14]
[356762100,1743137247309,-7503.51,0.00035616,17]
[356762101,1743137247342,-1840.96,0.00035616,17]
[356762102,1743137247374,-975.59,0.00035616,17]
[356762103,1743137247405,-500.0,0.00035616,17]
[356762104,1743137247429,-500.0,0.00035616,17]
[356762105,1743137247451,-1037.21,0.00035616,17]
[356762106,1743137247472,-982.81,0.00035616,17]
[356762107,1743137247493,-2779.38,0.00035616,17]
[356762108,1743137247522,-1000.0,0.00035616,17]
[356762109,1743137247551,-347.47479467,0.00035616,17]
[356762110,1743137247572,-500.0,0.00035616,17]
[356762111,1743137247937,-500.0,0.00035616,17]
[356762112,1743137247961,-500.0,0.00035616,17]
[356762113,1743137247982,-500.0,0.00035616,17]
[356762114,1743137248005,-500.0,0.00035616,17]
[356762115,1743137248029,-500.0,0.00035616,17]
[356762116,1743137248054,-500.0,0.00035616,17]
[356762117,1743137248076,-580.56,0.00035616,17]
[356762118,1743137248098,-626.79,0.00035616,17]
[356762119,1743137248119,-500.0,0.00035616,7]
[356762120,1743137248140,-500.0,0.00035616,17]
[356762121,1743137248162,-195.74677144,0.00035616,17]
[356762122,1743137248184,-5982.82,0.00035616,17]
[356762123,1743137248206,-500.0,0.00035616,17]
[356762124,1743137248228,-500.0,0.00035616,17]
[356762125,1743137248250,-651.99,0.00035616,17]
[356762126,1743137248272,-500.0,0.00035616,17]
[356762127,1743137248294,-842.71,0.00035616,17]
[356762128,1743137248317,-500.0,0.00035616,17]
[356762129,1743137248340,-500.0,0.00035616,17]
[356762130,1743137248362,-621.15042767,0.00035616,17]
[356762131,1743137248384,-500.0,0.00035616,17]
[356762132,1743137248407,-511.8857937,0.00035616,17]
[356762133,1743137248430,-500.0,0.00035616,17]
[356762134,1743137248455,-500.0,0.00035616,17]
[356762135,1743137248477,-500.7,0.00035616,17]
[356762136,1743137248498,-500.0,0.00035616,17]
[356762137,1743137248521,-1145.58,0.00035616,17]
[356762138,1743137248543,-500.0,0.00035616,17]
[356762139,1743137248564,-500.0,0.00035616,17]
[356762140,1743137248588,-740.35,0.00035616,17]
[356762141,1743137248610,-4586.94,0.00035616,17]
[356762142,1743137248631,-500.0,0.00035616,17]
[356762143,1743137248655,-500.0,0.00035616,17]
[356762144,1743137248676,-500.0,0.00035616,17]
[356762145,1743137248697,-500.0,0.00035616,17]
[356762146,1743137248720,-500.0,0.00035616,17]
[356762147,1743137248745,-591.69,0.00035616,17]
[356762148,1743137248769,-4085.66,0.00035616,17]
[356762149,1743137248791,-500.0,0.00035616,17]
[356762150,1743137248815,-500.0,0.00035616,17]
[356762151,1743137248840,-1439.95,0.00035616,17]
[356762152,1743137248863,-2460.2,0.00035616,17]
[356762153,1743137248886,-570.7321547,0.00035616,17]
[356762154,1743137248909,-500.0,0.00035616,17]
[356762155,1743137248934,-30878.82,0.00035616,17]
[356762156,1743137248958,-4638.86,0.00035616,17]
[356762157,1743137248982,-10453.81,0.00035616,17]
[356762158,1743137249005,-754.98,0.00035616,17]
[356762159,1743137249028,-308.6,0.00035616,7]
[356762160,1743137249052,-826.56,0.00035616,17]
[356762161,1743137249075,-500.0,0.00035616,17]
[356762162,1743137249096,-500.0,0.00035616,17]
[356762163,1743137249118,-500.0,0.00035616,17]
[356762164,1743137249141,-500.0,0.00035616,17]
[356762165,1743137249163,-500.0,0.00035616,17]
[356762166,1743137249185,-500.0,0.00035616,17]
[356762167,1743137249210,-3479.41,0.00035616,17]
[356762168,1743137249231,-600.57045006,0.00035616,12]
[356762169,1743137249254,-4150.8,0.00035616,17]
[356762170,1743137249275,-510.0639554,0.00035673,5]
[356762171,1743137249298,-500.81974789,0.00035673,5]
[356762172,1743137249322,-500.0,0.00035673,5]
[356762173,1743137249344,-610.23814736,0.00035673,5]
[356762174,1743137249366,-502.56892002,0.00035673,5]
[356762175,1743137249387,-500.0,0.00035673,5]
[356762176,1743137249408,-500.0,0.00035673,5]
[356762177,1743137249431,-405.4923309,0.00035673,2]
[356762178,1743137249456,-500.0,0.00035673,5]
[356762179,1743137249480,-500.0,0.00035673,5]
[356762180,1743137249502,-500.0,0.00035673,5]
[356762181,1743137249523,-500.0,0.00035673,5]
[356762182,1743137249545,-500.0,0.00035673,5]
[356762183,1743137249566,-500.0,0.00035673,5]
[356762184,1743137249587,-500.0,0.00035673,5]
[356762185,1743137249609,-500.24126846,0.00035673,5]
[356762186,1743137249630,-302.87853461,0.00035673,5]
[356762187,1743137249652,-500.0,0.00035673,5]
[356762188,1743137249676,-500.0,0.00035673,5]
[356762189,1743137249698,-159.33141373,0.00035673,5]
[356762190,1743137249722,-311.95437998,0.00035673,2]
[356762191,1743137249743,-500.0,0.00035673,5]
[356762192,1743137249764,-503.46513303,0.00035673,5]
[356762193,1743137249786,-500.0,0.00035673,5]
[356762194,1743137249809,-316.60781783,0.00035868,2]
[356762195,1743137249834,-500.0,0.00035873,5]
[356762196,1743137249856,-500.98155824,0.00035873,5]
[356762197,1743137249880,-500.0,0.00035873,5]
[356762198,1743137249904,-501.60839762,0.00035873,5]
[356762199,1743137249929,-500.0,0.00035873,5]
[356762200,1743137249952,-500.0,0.00035873,5]
[356762201,1743137249974,-500.0,0.00035873,5]
[356762202,1743137249995,-406.22183406,0.00035873,5]
[356762203,1743137250019,-501.45195482,0.00035873,5]
[356762204,1743137250041,-500.0,0.00035873,5]
[356762205,1743137250067,-500.0,0.00035873,5]
[356762206,1743137250089,-500.0,0.00035873,5]
[356762207,1743137250111,-500.0,0.00035873,5]
[356762208,1743137250134,-500.0,0.00035873,5]
[356762209,1743137250156,-500.0,0.00035873,5]
[356762210,1743137250177,-500.0,0.00035873,5]
[356762211,1743137250200,-515.59486335,0.0003589,17]
[356762212,1743137250225,-500.0,0.0003589,17]
[356762213,1743137250247,-500.0,0.0003589,17]
[356762214,1743137250268,-629.39372058,0.0003589,17]
[356762215,1743137250290,-165.99855124,0.0003589,17]
[356762216,1743137250312,-500.0,0.0003589,17]
[356762217,1743137250334,-500.0,0.0003589,17]
[356762218,1743137250356,-500.0,0.0003589,17]
[356762219,1743137250377,-567.7132721,0.0003589,17]
[356762220,1743137250399,-500.0,0.0003589,17]
[356762221,1743137250419,-500.0,0.0003589,17]
[356762222,1743137250440,-500.0,0.0003589,17]
[356762223,1743137250462,-500.0,0.0003589,17]
[356762224,1743137250483,-500.0,0.0003589,17]
[356762225,1743137250503,-500.0,0.0003589,17]
[356762226,1743137250525,-500.0,0.0003589,17]
[356762227,1743137250546,-500.0,0.0003589,17]
[356762228,1743137250566,-500.0,0.0003589,17]
[356762229,1743137250586,-500.0,0.0003589,17]
[356762230,1743137250606,-500.0,0.0003589,17]
[356762231,1743137250627,-500.0,0.0003589,17]
[356762232,1743137250648,-805.17,0.0003589,17]
[356762233,1743137250669,-500.0,0.0003589,17]
[356762234,1743137250690,-500.0,0.0003589,17]
[356762235,1743137250714,-550.63,0.0003589,17]
[356762236,1743137250736,-503.50485424,0.0003589,17]
[356762237,1743137250756,-500.0,0.0003589,17]
[356762238,1743137250777,-324.80995702,0.0003589,17]
[356762239,1743137250947,-174.67680196,0.0003589,17]
[356762240,1743137250972,-989.6,0.0003589,17]
[356762241,1743137250994,-532.14,0.0003589,17]
[356762242,1743137251015,-500.0,0.0003589,17]
[356762243,1743137251038,-500.0,0.0003589,17]
[356762244,1743137251060,-679.9,0.0003589,17]
[356762245,1743137251081,-500.0,0.0003589,17]
[356762246,1743137251103,-500.0,0.0003589,17]
[356762247,1743137251125,-500.0,0.0003589,17]
[356762248,1743137251147,-500.0,0.0003589,17]
[356762249,1743137251168,-500.0,0.0003589,17]
[356762250,1743137251192,-500.0,0.0003589,17]
[356762251,1743137251216,-337.58571246,0.0003589,17]
[356762252,1743137251236,-500.0,0.0003589,17]
[356762253,1743137251258,-641.1,0.0003589,17]
[356762254,1743137251279,-500.0,0.0003589,17]
[356762255,1743137251299,-500.0,0.0003589,17]
[356762256,1743137251321,-1127.56,0.0003589,17]
[356762257,1743137251342,-500.0,0.0003589,17]
[356762258,1743137251363,-678.55,0.0003589,17]
[356762259,1743137251384,-500.0,0.0003589,17]
[356762260,1743137251406,-569.12642442,0.0003589,17]
[356762261,1743137251427,-500.0,0.0003589,17]
[356762262,1743137251449,-500.0,0.0003589,17]
[356762263,1743137251474,-1147.72,0.0003589,17]
[356762264,1743137251496,-771.65,0.0003589,17]
[356762265,1743137251518,-500.0,0.0003589,17]
[356762266,1743137251539,-500.0,0.0003589,17]
[356762267,1743137251560,-500.0,0.0003589,120]
[356762268,1743137251581,-500.0,0.0003589,17]
[356762269,1743137251602,-500.0,0.0003589,17]
[356762270,1743137251623,-500.0,0.0003589,17]
[356762271,1743137251644,-500.0,0.0003589,17]
[356762272,1743137251665,-500.0,0.0003589,17]
[356762273,1743137251686,-500.0,0.0003589,17]
[356762274,1743137251708,-555.04,0.0003589,7]
[356762275,1743137251731,-828.56,0.0003589,17]
[356762276,1743137251752,-500.0,0.0003589,17]
[356762277,1743137251774,-500.0,0.0003589,17]
[356762278,1743137251794,-500.0,0.0003589,17]
[356762279,1743137251815,-500.0,0.0003589,17]
[356762280,1743137251839,-500.0,0.0003589,17]
[356762281,1743137251862,-668.43,0.0003589,17]
[356762282,1743137251885,-500.0,0.0003589,17]
[356762283,1743137251908,-499.48818059,0.0003589,17]
[356762284,1743137251931,-580.2,0.0003589,17]
[356762285,1743137251954,-500.0,0.0003589,17]
[356762286,1743137251974,-2237.94,0.0003589,17]
[356762287,1743137251996,-500.0,0.0003589,17]
[356762288,1743137252019,-500.0,0.0003589,17]
[356762289,1743137252041,-500.0,0.0003589,17]
[356762290,1743137252063,-961.87,0.0003589,17]
[356762291,1743137252085,-500.0,0.0003589,17]
[356762292,1743137252107,-500.0,0.0003589,17]
[356762293,1743137252128,-500.0,0.0003589,17]
[356762294,1743137252150,-979.72,0.0003589,17]
[356762295,1743137252171,-579.87459836,0.0003589,17]
[356762296,1743137252193,-500.0,0.0003589,17]
[356762297,1743137252217,-500.0,0.0003589,17]
[356762298,1743137252239,-545.43,0.0003589,17]
[356762299,1743137252261,-500.0,0.0003589,17]
[356762300,1743137252284,-500.0,0.0003589,17]
[356762301,1743137252306,-1073.92,0.0003589,17]
[356762302,1743137252327,-500.0,0.0003589,17]
[356762303,1743137252348,-500.0,0.0003589,17]
[356762304,1743137252369,-500.0,0.0003589,17]
[356762305,1743137252393,-500.0,0.0003589,17]
[356762306,1743137252415,-500.0,0.0003589,17]
[356762307,1743137252438,-700.19,0.0003589,17]
[356762308,1743137252460,-500.0,0.0003589,17]
[356762309,1743137252481,-777.25,0.0003589,17]
[356762310,1743137252503,-500.0,0.0003589,17]
[356762311,1743137252523,-500.0,0.0003589,17]
[356762312,1743137252543,-500.0,0.0003589,17]
[356762313,1743137252565,-500.0,0.0003589,17]
[356762314,1743137252586,-537.71,0.0003589,17]
[356762315,1743137252607,-500.0,0.0003589,17]
[356762316,1743137252628,-500.0,0.0003589,17]
[356762317,1743137252649,-500.0,0.0003589,17]
[356762318,1743137252670,-240.33481955,0.0003589,17]
[356762319,1743137252691,-500.0,0.0003589,17]
[356762320,1743137252713,-1980.27,0.0003589,17]
[356762321,1743137252734,-1838.3,0.0003589,17]
[356762322,1743137252756,-554.71,0.0003589,17]
[356762323,1743137252777,-500.0,0.0003589,17]
[356762324,1743137252798,-500.0,0.0003589,17]
[356762325,1743137252819,-500.0,0.0003589,17]
[356762326,1743137252840,-500.0,0.0003589,17]
[356762327,1743137252863,-500.0,0.0003589,17]
[356762328,1743137252885,-815.32,0.0003589,17]
[356762329,1743137252907,-500.0,0.0003589,17]
[356762330,1743137252928,-500.0,0.0003589,17]
[356762331,1743137252950,-990.28,0.0003589,17]
[356762332,1743137252972,-500.0,0.0003589,17]
[356762333,1743137252993,-500.0,0.0003589,17]
[356762334,1743137253016,-500.0,0.0003589,17]
[356762335,1743137253038,-500.0,0.0003589,17]
[356762336,1743137253059,-500.0,0.0003589,17]
[356762337,1743137253081,-500.0,0.0003589,17]
[356762338,1743137253104,-1012.51,0.0003589,17]
[356762339,1743137253126,-500.0,0.0003589,17]
[356762340,1743137253147,-500.0,0.0003589,17]
[356762341,1743137253171,-500.0,0.0003589,17]
[356762342,1743137253192,-500.0,0.0003589,17]
[356762343,1743137253215,-500.0,0.0003589,17]
[356762344,1743137253238,-500.0,0.0003589,17]
[356762345,1743137253260,-500.0,0.0003589,17]
[356762346,1743137253282,-1544.99,0.0003589,17]
[356762347,1743137253303,-500.0,0.0003589,17]
[356762348,1743137253324,-500.0,0.0003589,17]
[356762349,1743137253346,-500.0,0.0003589,17]
[356762350,1743137253368,-500.0,0.0003589,17]
[356762351,1743137253391,-500.0,0.0003589,7]
[356762352,1743137253414,-500.0,0.0003589,17]
[356762353,1743137253437,-500.0,0.0003589,17]
[356762354,1743137253464,-500.0,0.0003589,17]
[356762355,1743137253488,-500.0,0.0003589,17]
[356762356,1743137253514,-500.0,0.0003589,17]
[356762357,1743137253539,-500.0,0.0003589,17]
[356762358,1743137253562,-641.18429672,0.0003589,17]
[356762359,1743137253587,-500.0,0.0003589,17]
[356762360,1743137253610,-500.0,0.0003589,17]
[356762361,1743137253634,-500.0,0.0003589,17]
[356762362,1743137253656,-500.0,0.0003589,17]
[356762363,1743137253678,-500.0,0.0003589,17]
[356762364,1743137253699,-500.0,0.0003589,17]
[356762365,1743137253724,-1579.03,0.0003589,17]
[356762366,1743137253746,-559.58,0.0003589,17]
[356762367,1743137253770,-508.58937092,0.0003589,17]
[356762368,1743137253792,-500.0,0.0003589,17]
[356762369,1743137253815,-537.42865071,0.0003589,17]
[356762370,1743137253841,-500.0,0.0003589,17]
[356762371,1743137253863,-1530.99,0.0003589,17]
[356762372,1743137253885,-500.0,0.0003589,17]
[356762373,1743137253908,-500.0,0.0003589,17]
[356762374,1743137253931,-500.0,0.0003589,17]
[356762375,1743137253954,-500.0,0.0003589,17]
[356762376,1743137253976,-500.0,0.0003589,17]
[356762377,1743137253999,-500.0,0.0003589,17]
[356762378,1743137254023,-500.0,0.0003589,17]
[356762379,1743137254268,-500.0,0.0003589,17]
[356762380,1743137254293,-500.0,0.0003589,17]
[356762381,1743137254316,-500.0,0.0003589,17]
[356762382,1743137254342,-500.0,0.0003589,17]
[356762383,1743137254366,-500.0,0.0003589,17]
[356762384,1743137254390,-500.0,0.0003589,17]
[356762385,1743137254412,-500.0,0.0003589,17]
[356762386,1743137254435,-555.09019421,0.0003589,17]
[356762387,1743137254463,-500.0,0.0003589,17]
[356762388,1743137254486,-500.0,0.0003589,17]
[356762389,1743137254526,-500.0,0.0003589,17]
[356762390,1743137254556,-500.0,0.0003589,17]
[356762391,1743137254580,-500.0,0.0003589,17]
[356762392,1743137254606,-225.12039218,0.0003589,17]
[356762393,1743137254629,-500.0,0.0003589,17]
[356762394,1743137254657,-500.0,0.0003589,17]
[356762395,1743137254680,-500.0,0.0003589,17]
[356762396,1743137254704,-500.0,0.0003589,17]
[356762397,1743137254730,-500.0,0.0003589,17]
[356762398,1743137254756,-500.0,0.0003589,17]
[356762399,1743137255000,-500.0,0.0003589,17]
[356762400,1743137255024,-500.0,0.0003589,17]
[356762401,1743137255046,-470.54801209,0.0003589,17]
[356762402,1743137255069,-500.0,0.0003589,17]
[356762403,1743137255091,-509.16925481,0.0003589,17]
[356762404,1743137255118,-500.0,0.0003589,17]
[356762405,1743137255140,-500.0,0.0003589,5]
[356762406,1743137255162,-500.0,0.0003589,17]
[356762407,1743137255185,-526.9074895,0.0003589,17]
[356762408,1743137255208,-512.06189543,0.0003589,17]
[356762409,1743137255231,-500.0,0.0003589,17]
[356762410,1743137255253,-609.11,0.0003589,17]
[356762411,1743137255277,-500.0,0.0003589,17]
[356762412,1743137255301,-500.0,0.0003589,17]
[356762413,1743137255322,-726.06,0.0003589,17]
[356762414,1743137255344,-500.0,0.0003589,17]
[356762415,1743137255367,-500.0,0.0003589,17]
[356762416,1743137255389,-524.53828989,0.0003589,17]
[356762417,1743137255412,-245.85611374,0.0003589,17]
[356762418,1743137255433,-500.0,0.0003589,17]
[356762419,1743137255455,-500.0,0.0003589,17]
[356762420,1743137255478,-500.0,0.0003589,17]
[356762421,1743137255500,-500.0,0.0003589,17]
[356762422,1743137255523,-500.0,0.0003589,17]
[356762423,1743137255546,-758.65,0.0003589,17]
[356762424,1743137255570,-500.0,0.0003589,17]
[356762425,1743137255592,-1494.81,0.0003589,17]
[356762426,1743137255615,-500.0,0.0003589,17]
[356762427,1743137255637,-500.0,0.0003589,17]
[356762428,1743137255659,-500.0,0.0003589,17]
[356762429,1743137255682,-500.0,0.0003589,17]
[356762430,1743137255704,-500.0,0.0003589,17]
[356762431,1743137255728,-3883.14,0.0003589,17]
[356762432,1743137255751,-500.0,0.0003589,17]
[356762433,1743137255772,-500.0,0.0003589,17]
[356762434,1743137255795,-500.0,0.0003589,17]
[356762435,1743137255817,-500.0,0.0003589,17]
[356762436,1743137255842,-1655.42,0.0003589,17]
[356762437,1743137255865,-574.49469985,0.0003589,17]
[356762438,1743137255888,-500.0,0.0003589,17]
[356762439,1743137255911,-500.0,0.0003589,17]
[356762440,1743137255933,-1407.99,0.0003589,17]
[356762441,1743137255954,-500.0,0.0003589,17]
[356762442,1743137255978,-500.0,0.0003589,17]
[356762443,1743137255999,-2011.63,0.0003589,17]
[356762444,1743137256021,-759.65,0.0003589,17]
[356762445,1743137256044,-500.0,0.0003589,17]
[356762446,1743137256066,-7848.6,0.0003589,2]
[356762447,1743137256088,-500.0,0.0003589,17]
[356762448,1743137256109,-479.37061012,0.0003589,17]
[356762449,1743137256132,-500.0,0.0003589,17]
[356762450,1743137256153,-519.18,0.0003589,17]
[356762451,1743137256175,-687.86,0.0003589,17]
[356762452,1743137256197,-500.0,0.0003589,17]
[356762453,1743137256221,-500.0,0.0003589,17]
[356762454,1743137256243,-500.0,0.0003589,17]
[356762455,1743137256265,-1981.89,0.0003589,17]
[356762456,1743137256287,-1186.13,0.0003589,17]
[356762457,1743137256309,-500.0,0.0003589,17]
[356762458,1743137256331,-540.20043967,0.0003589,17]
[356762459,1743137256352,-500.0,0.0003589,17]
[356762460,1743137256373,-500.0,0.0003589,17]
[356762461,1743137256395,-500.0,0.0003589,17]
[356762462,1743137256418,-500.0,0.0003589,17]
[356762463,1743137256441,-2282.69,0.0003589,17]
[356762464,1743137256471,-500.0,0.0003589,17]
[356762465,1743137256495,-346.43645983,0.0003589,17]
[356762466,1743137256519,-500.0,0.0003589,17]
[356762467,1743137256541,-500.0,0.0003589,17]
[356762468,1743137256564,-2183.36,0.0003589,17]
[356762469,1743137256587,-500.0,0.0003589,17]
[356762470,1743137256610,-640.67901571,0.0003589,17]
[356762471,1743137256631,-500.0,0.0003589,17]
[356762472,1743137256652,-500.0,0.0003589,17]
[356762473,1743137256676,-550.62202961,0.0003589,17]
[356762474,1743137256697,-341.09698529,0.0003589,17]
[356762475,1743137256722,-1664.16,0.0003589,17]
[356762476,1743137256743,-500.0,0.0003589,17]
[356762477,1743137256766,-2483.2,0.0003589,17]
[356762478,1743137256788,-1586.16,0.0003589,17]
[356762479,1743137256812,-500.0,0.0003589,17]